bitfinex-derivatives/quotes_BNBF0:USTF0_20250130
["timestamp","ask_amount","ask_price","bid_price","bid_amount"]
[1738207340755,0.27254917,674.66,673.8,0.29682398]
[1738207342861,1.11207771,674.67,673.8,0.29682398]
[1738207343162,0.27255666,674.66,673.8,0.29682398]
[1738207343358,1.38463437,674.66,673.8,0.29682398]
[1738207343559,0.27255666,674.65,673.8,0.29682398]
[1738207344160,1.11207771,674.66,673.8,0.29682398]
[1738207344357,1.11207771,674.66,673.6,1.10731267]
[1738207346062,0.27262074,674.65,673.6,1.10731267]
[1738207346362,6.47659618,680.5,668.13,4.62091175]
[1738207346363,1.11207771,674.76,673.27,1.10731267]
[1738207346562,0.27262326,674.75,673.28,0.24365611]
[1738207346761,0.27262326,674.75,673.29,0.29704881]
[1738207347064,0.27262326,674.75,673.3,0.24365611]
[1738207347465,0.27262326,674.75,673.29,0.29704881]
[1738207347665,0.27262326,674.75,673.3,0.24373777]
[1738207347965,0.27262326,674.75,673.31,0.29703999]
[1738207348769,0.29641046,674.74,673.31,0.29703999]
[1738207348970,0.27262326,674.73,673.31,0.29703999]
[1738207349171,0.29641925,674.72,673.31,0.29703999]
[1738207349373,1.11207771,674.58,673.31,0.29703999]
[1738207349565,0.27262326,674.57,673.31,0.29703999]
[1738207352265,0.27262326,674.56,673.31,0.29703999]
[1738207352475,0.27262326,674.7,673.31,0.29703999]
[1738207352671,0.27262326,674.69,673.31,0.29703999]
[1738207352871,1.11207771,674.71,673.31,0.29703999]
[1738207353072,0.27264404,674.7,673.31,0.29703999]
[1738207353868,0.56907208,674.7,673.31,0.29703999]
[1738207354070,0.27264404,674.69,673.31,0.29703999]
[1738207354475,0.29642804,674.7,673.31,0.29703999]
[1738207354669,0.27265058,674.69,673.32,1.54898441]
[1738207354973,0.27265058,674.69,673.32,1.84601999]
[1738207357173,0.56908301,674.69,673.32,1.84601999]
[1738207357475,0.27265058,674.68,673.32,1.84601999]
[1738207357871,0.27266444,674.67,673.32,1.84601999]
[1738207358072,0.27266444,674.66,673.32,1.84601999]
[1738207358276,0.27266444,674.68,673.33,0.24370778]
[1738207358578,0.27266444,674.67,673.33,0.24370778]
[1738207358777,0.27266444,674.68,673.33,0.24370778]
[1738207359073,0.27266444,674.67,673.33,0.24370778]
[1738207359274,0.27266444,674.66,673.33,0.24370778]
[1738207359472,0.27266444,674.68,673.33,0.24370778]
[1738207359672,0.27266444,674.67,673.33,0.24370778]
[1738207359873,0.27266444,674.68,673.33,0.24370778]
[1738207360073,0.27266444,674.67,673.33,0.24370778]
[1738207360276,0.27266444,674.66,673.33,0.24370778]
[1738207360473,0.27266444,674.65,673.33,0.24370778]
[1738207360676,0.27266444,674.64,673.33,0.24370778]
[1738207360873,0.27266444,674.68,673.33,0.24370778]
[1738207361078,0.29643243,674.69,673.33,0.24370778]
[1738207361079,1.11207771,674.65,673.33,0.24370778]
[1738207361278,0.27266444,674.64,673.33,0.24370778]
[1738207363477,0.27266444,674.64,673.32,1.84601999]
[1738207363682,1.11207771,674.61,673.32,1.84601999]
[1738207363878,0.27266444,674.6,673.32,1.84601999]
[1738207366186,1.11207771,674.67,673.32,1.84601999]
[1738207366386,0.56912137,674.66,673.32,1.84601999]
[1738207366587,0.56912577,674.65,673.32,1.84601999]
[1738207366887,0.56913016,674.64,673.32,1.84601999]
[1738207367185,0.27267576,674.63,673.32,1.84601999]
[1738207368389,0.29646319,674.62,673.32,1.84601999]
[1738207368585,0.27267576,674.61,673.32,1.84601999]
[1738207368991,0.29647198,674.6,673.32,1.84601999]
[1738207369290,0.27267576,674.59,673.32,1.84601999]
[1738207369491,0.29647198,674.6,673.32,1.84601999]
[1738207373592,0.27267647,674.59,673.32,1.84601999]
[1738207379388,0.27267647,674.59,673.33,0.24382549]
[1738207381194,1.11207771,674.55,673.33,0.24382549]
[1738207381396,0.27267647,674.54,673.33,0.24382549]
[1738207384099,1.11207771,674.55,673.32,1.84601999]
[1738207384300,1.11207771,674.3,673.35,1.10731267]
[1738207384493,1.11207771,674.3,673.36,0.24380397]
[1738207384797,1.11207771,674.3,673.35,1.10731267]
[1738207386095,1.11207771,674.3,673.36,0.24381114]
[1738207386801,1.11207771,674.3,673.35,1.10731267]
[1738207387195,1.11207771,674.29,673.35,1.10731267]
[1738207390401,1.11207771,674.35,673.35,1.10731267]
[1738207390602,1.11207771,674.35,673.32,1.84601999]
[1738207393103,1.11207771,674.33,673.32,1.84601999]
[1738207395204,0.27270174,674.32,673.32,1.84601999]
[1738207396205,1.11207771,674.33,673.32,1.84601999]
[1738207396406,0.27270031,674.32,673.32,1.84601999]
[1738207396807,1.11207771,674.69,673.32,1.84601999]
[1738207396808,1.11207771,674.3,673.32,1.84601999]
[1738207399707,1.11207771,674.29,673.32,1.84601999]
[1738207403611,1.11207771,674.28,673.32,1.84601999]
[1738207404713,1.11207771,674.28,673.32,0.29703558]
[1738207405313,0.27274652,674.27,673.32,0.29703558]
[1738207406112,1.38482423,674.27,673.32,0.29703558]
[1738207406309,1.11207771,674.27,673.32,0.29703558]
[1738207406511,0.27275199,674.26,673.32,0.29703558]
[1738207408520,0.27275199,674.26,673.24,1.10731267]
[1738207409120,1.11207771,674.2,673.07,1.10731267]
[1738207409321,0.27275199,674.19,673.07,1.10731267]
[1738207409521,1.11207771,674.2,673.07,1.10731267]
[1738207409719,0.27279035,674.19,673.08,1.54965118]
[1738207411021,0.27279028,674.18,673.08,1.54965118]
[1738207411419,0.27279028,674.17,673.08,1.54965118]
[1738207411618,0.27279028,674.16,673.08,1.54965118]
[1738207411819,1.11207771,674.2,673.08,1.54965118]
[1738207411820,0.27279028,674.15,673.08,1.54965118]
[1738207412021,0.27279028,674.14,673.08,1.54965118]
[1738207412218,1.11207771,674.23,673.08,1.54965118]
[1738207412522,0.27279012,674.22,673.08,1.54965118]
[1738207414824,0.27279012,674.21,673.08,1.54965118]
[1738207415025,0.27279012,674.2,673.08,1.54965118]
[1738207415221,0.27279012,674.19,673.08,1.54965118]
[1738207415423,0.27279012,674.18,673.08,1.54965118]
[1738207415623,0.27279012,674.17,673.08,1.54965118]
[1738207415823,0.27279012,674.16,673.08,1.54965118]
[1738207416024,0.27279012,674.23,673.08,1.54965118]
[1738207416326,1.11207771,674.24,673.08,1.54965118]
[1738207416526,0.27279581,674.23,673.08,1.54965118]
[1738207417219,0.27279613,674.22,673.08,1.54965118]
[1738207417425,0.27279613,674.23,673.08,1.54965118]
[1738207418220,0.27279613,674.24,673.08,1.54965118]
[1738207418423,0.27279613,674.23,673.08,1.54965118]
[1738207418723,0.27279613,674.22,673.08,1.54965118]
[1738207418924,0.27279613,674.21,673.08,1.54965118]
[1738207419122,0.27279613,674.2,673.08,1.54965118]
[1738207419324,0.27279613,674.19,673.08,1.54965118]
[1738207419527,0.27279613,674.18,673.08,1.54965118]
[1738207419728,0.27279613,674.24,673.08,1.54965118]
[1738207419928,0.27279613,674.23,673.08,1.54965118]
[1738207420123,0.27279613,674.24,673.08,1.54965118]
[1738207420329,0.27279613,674.23,673.08,1.54965118]
[1738207420530,0.27279613,674.24,673.08,1.54965118]
[1738207420831,0.27279613,674.23,673.08,1.54965118]
[1738207421031,0.27279613,674.27,673.08,1.54965118]
[1738207421226,0.27279613,674.26,673.08,1.54965118]
[1738207421430,0.27279613,674.27,673.08,1.54965118]
[1738207421632,0.27279613,674.26,673.08,1.54965118]
[1738207421832,0.27279613,674.25,673.08,1.54965118]
[1738207422131,0.27279613,674.24,673.08,1.54965118]
[1738207422433,0.27279613,674.23,673.08,1.54965118]
[1738207422631,0.27279613,674.22,673.08,1.54965118]
[1738207422832,0.27279613,674.21,673.08,1.54965118]
[1738207423033,0.27279613,674.27,673.08,1.54965118]
[1738207423227,0.27279613,674.26,673.08,1.54965118]
[1738207423433,1.11207771,674.25,673.09,0.24427543]
[1738207423629,0.27280186,674.24,673.1,0.24427527]
[1738207423933,0.27280186,674.24,673.11,0.24427527]
[1738207424237,0.27280186,674.24,673.08,1.54965118]
[1738207424534,0.27280186,674.24,673.09,0.24427649]
[1738207424935,1.11207771,674.25,673.08,1.54965118]
[1738207425134,0.27280308,674.24,673.09,0.24427647]
[1738207425730,0.27280308,674.24,673.08,1.54965118]
[1738207426540,1.11207771,674.17,673.08,1.54965118]
[1738207426734,0.2727991,674.16,673.08,1.54965118]
[1738207429531,0.2727991,674.19,673.08,1.54965118]
[1738207429735,0.2727991,674.18,673.08,1.54965118]
[1738207430039,1.11207771,674.2,673.08,1.54965118]
[1738207430244,0.27280053,674.19,673.08,1.54965118]
[1738207431638,1.11207771,674.2,673.08,1.54965118]
[1738207432037,1.11207771,674.39,673.08,1.54965118]
[1738207432038,1.11207771,674.18,673.08,1.54965118]
[1738207435740,1.11207771,674.32,673.08,1.54965118]
[1738207435942,0.27280702,674.31,673.08,1.54965118]
[1738207436639,0.5694065,674.31,673.08,1.54965118]
[1738207436940,0.27280702,674.3,673.08,1.54965118]
[1738207438439,1.11207771,674.27,673.08,1.54965118]
[1738207438635,0.27280755,674.26,673.08,1.54965118]
[1738207440040,1.11207771,674.27,673.08,1.54965118]
[1738207440241,0.27280938,674.26,673.08,1.54965118]
[1738207440542,1.11207771,674.27,673.08,1.54965118]
[1738207441242,1.11207771,674.21,673.08,1.54965118]
[1738207443844,1.11207771,674.26,673.08,1.54965118]
[1738207448352,1.40867719,674.31,673.08,1.54965118]
[1738207451952,0.27278819,674.3,673.08,1.54965118]
[1738207452152,1.11207771,674.27,673.08,1.54965118]
[1738207452352,0.27278819,674.26,673.08,1.54965118]
[1738207454252,1.11207771,674.27,673.08,1.54965118]
[1738207454456,0.27278525,674.26,673.08,1.54965118]
[1738207455048,1.11207771,674.13,673.08,1.54965118]
[1738207457653,1.11207771,674.08,673.08,1.54965118]
[1738207460559,1.11207771,674.14,673.08,1.54965118]
[1738207463560,1.11207771,674.13,673.08,1.54965118]
[1738207465657,1.11207771,674.13,673.09,0.54094193]
[1738207465964,1.11207771,674.13,673.1,0.29713266]
[1738207466866,1.11207771,674.14,673.1,0.29713266]
[1738207468064,1.11207771,674.14,673.11,0.24381314]
[1738207468366,1.11207771,674.14,673.12,0.29712384]
[1738207471068,1.11207771,674.19,673.12,0.29712384]
[1738207473962,0.29659948,674.31,673.12,0.29712384]
[1738207473963,1.11207771,674.25,673.12,0.29712384]
[1738207474167,0.27277067,674.24,673.12,0.29712384]
[1738207477371,1.11207771,674.17,673.12,0.29712384]
[1738207478872,0.27279081,674.16,673.12,0.29712384]
[1738207479467,0.27280631,674.15,673.12,0.29712384]
[1738207479672,0.27280631,674.16,673.12,0.29712384]
[1738207479871,0.27280631,674.15,673.12,0.29712384]
[1738207480072,0.27280631,674.14,673.12,0.29712384]
[1738207480367,0.27280631,674.13,673.12,0.29712384]
[1738207480572,0.27280631,674.12,673.12,0.29712384]
[1738207480766,0.27280631,674.11,673.12,0.29712384]
[1738207481067,0.27280631,674.1,673.12,0.29712384]
[1738207481267,0.27280631,674.09,673.12,0.29712384]
[1738207481465,0.27280631,674.16,673.12,0.29712384]
[1738207481670,0.27280631,674.15,673.12,0.29712384]
[1738207481975,0.27280631,674.14,673.12,0.29712384]
[1738207482669,1.11207771,674.15,673.12,0.29712384]
[1738207482875,0.2728214,674.14,673.12,0.29712384]
[1738207485173,1.11207771,674.02,673.12,0.29712384]
[1738207488276,0.27281809,674.01,673.12,0.29712384]
[1738207488469,0.27281809,674.06,673.12,0.29712384]
[1738207488673,1.11207771,674.07,673.12,0.29712384]
[1738207488975,0.27281983,674.06,673.12,0.29712384]
[1738207490978,0.27281812,674.05,673.12,0.29712384]
[1738207491276,0.27281812,674.04,673.12,0.29712384]
[1738207491474,0.27281812,674.06,673.12,0.29712384]
[1738207491775,1.11207771,674.07,673.12,0.29712384]
[1738207491776,0.27281812,674.05,673.12,0.29712384]
[1738207491971,0.27281812,674.04,673.12,0.29712384]
[1738207492170,1.11207771,674.07,673.12,0.29712384]
[1738207492171,0.27281812,674.03,673.12,0.29712384]
[1738207492374,1.11207771,673.97,673.12,0.29712384]
[1738207495282,1.11207771,674.07,673.12,0.29712384]
[1738207495475,0.27281765,674.06,673.12,0.29712384]
[1738207495976,0.27281837,674.05,673.12,0.29712384]
[1738207496177,0.27281837,674.04,673.12,0.29712384]
[1738207496380,0.27281837,674.06,673.12,0.29712384]
[1738207496681,0.27281837,674.05,673.12,0.29712384]
[1738207496880,0.27281837,674.06,673.12,0.29712384]
[1738207497182,0.27281837,674.05,673.12,0.29712384]
[1738207497383,0.27281837,674.04,673.12,0.29712384]
[1738207497582,0.27281837,674.06,673.12,0.29712384]
[1738207497783,0.27281837,674.05,673.12,0.29712384]
[1738207497982,0.27281837,674.06,673.12,0.29712384]
[1738207498177,0.27281837,674.05,673.12,0.29712384]
[1738207498380,0.27281837,674.06,673.12,0.29712384]
[1738207498579,0.27281837,674.05,673.12,0.29712384]
[1738207498777,0.27281837,674.04,673.12,0.29712384]
[1738207498980,0.27281837,674.03,673.12,0.29712384]
[1738207499182,1.11207771,674.07,673.12,0.29712384]
[1738207499483,0.27281554,674.06,673.12,0.29712384]
[1738207502185,0.27281719,674.05,673.12,0.29712384]
[1738207502379,0.27281719,674.04,673.12,0.29712384]
[1738207502579,1.11207771,674.07,673.12,0.29712384]
[1738207502784,0.27281335,674.06,673.12,0.29712384]
[1738207502982,0.27281335,674.05,673.12,0.29712384]
[1738207503185,0.27281335,674.04,673.12,0.29712384]
[1738207503378,0.27281335,674.03,673.12,0.29712384]
[1738207503581,0.27281335,674.08,673.12,0.29712384]
[1738207503781,0.27281335,674.07,673.12,0.29712384]
[1738207504083,0.27281335,674.08,673.12,0.29712384]
[1738207504283,0.27281335,674.07,673.12,0.29712384]
[1738207504584,0.27281335,674.06,673.12,0.29712384]
[1738207504784,0.27281335,674.05,673.12,0.29712384]
[1738207505083,0.27281335,674.04,673.12,0.29712384]
[1738207505283,0.27281335,674.03,673.12,0.29712384]
[1738207505484,0.27281335,674.08,673.12,0.29712384]
[1738207506185,1.11207771,674.05,673.12,0.29712384]
[1738207506388,0.27281335,674.04,673.12,0.29712384]
[1738207509387,1.11207771,674.0,673.12,0.29712384]
[1738207509588,0.27281335,673.99,673.12,0.29712384]
[1738207510382,0.27281335,673.99,673.13,0.24396765]
[1738207510587,1.11207771,674.0,673.12,0.29712384]
[1738207513691,1.11207771,674.26,673.12,0.29712384]
[1738207516392,1.11207771,674.3,673.12,0.29712384]
[1738207516591,0.27274835,674.29,673.12,0.29712384]
[1738207516892,1.11207771,674.3,673.12,0.29712384]
[1738207517094,0.27275078,674.29,673.12,0.29712384]
[1738207518695,1.11207771,674.3,673.12,0.29712384]
[1738207518897,0.27275128,674.29,673.12,0.29712384]
[1738207519192,1.11207771,674.32,673.12,0.29712384]
[1738207519391,0.27275095,674.3,673.12,0.29712384]
[1738207520195,1.11207771,674.32,673.12,0.29712384]
[1738207520397,0.27274768,674.3,673.13,0.24401652]
[1738207523601,0.27274889,674.29,673.14,0.24402387]
[1738207523802,0.27274889,674.28,673.15,0.24402387]
[1738207524009,0.27274889,674.3,673.13,0.24402387]
[1738207524204,1.11207771,674.35,673.14,0.24402387]
[1738207524205,0.27274889,674.29,673.14,0.24402387]
[1738207524405,0.27274889,674.3,673.13,0.24402387]
[1738207524605,0.27274889,674.29,673.14,0.24402387]
[1738207524803,0.27274889,674.3,673.13,0.24402387]
[1738207525107,1.11207771,674.24,673.14,0.24402387]
[1738207525306,0.27274889,674.23,673.13,0.24402387]
[1738207525605,0.27274889,674.23,673.14,0.24402387]
[1738207525806,0.27274889,674.23,673.13,0.24402387]
[1738207526005,0.27274889,674.23,673.14,0.24402387]
[1738207526201,0.27274889,674.23,673.15,0.24402387]
[1738207526401,0.27274889,674.23,673.16,0.24402387]
[1738207526603,0.27274889,674.23,673.13,0.24402387]
[1738207526801,1.11207771,674.24,673.12,0.29712384]
[1738207527004,0.27274681,674.23,673.13,0.24401548]
[1738207527910,1.38482452,674.23,673.13,0.24401548]
[1738207528110,0.27274681,674.22,673.13,0.24401548]
[1738207531017,1.38482452,674.22,673.13,0.24401548]
[1738207531214,0.27274681,674.21,673.13,0.24401548]
[1738207531912,0.27274608,674.2,673.12,0.29712384]
[1738207532215,0.27274608,674.19,673.13,0.24390422]
[1738207532416,0.27274608,674.21,673.13,0.24390422]
[1738207532610,0.27274608,674.2,673.13,0.24390422]
[1738207532815,0.27274608,674.19,673.14,0.24389903]
[1738207533015,0.27274608,674.18,673.15,0.24389903]
[1738207533213,0.27274608,674.21,673.13,0.24389903]
[1738207533415,0.27274608,674.2,673.14,0.24389903]
[1738207533616,0.27274608,674.21,673.13,0.24389903]
[1738207533918,1.11207771,674.19,673.14,0.24389903]
[1738207534118,0.27274608,674.18,673.13,0.24389903]
[1738207534321,0.27274608,674.18,673.12,0.29712384]
[1738207534322,0.27274608,674.18,673.14,0.24389903]
[1738207534520,0.27274608,674.18,673.13,0.24389903]
[1738207534814,0.27274608,674.18,673.14,0.24389903]
[1738207535020,0.27274608,674.18,673.13,0.24389903]
[1738207535221,1.11207771,674.19,673.12,0.29712384]
[1738207535420,1.11207771,674.19,673.13,0.24390312]
[1738207535421,0.27274586,674.18,673.13,0.24390312]
[1738207536718,0.27274586,674.18,673.14,0.29711501]
[1738207536924,1.11207771,674.17,673.15,0.24390312]
[1738207537123,1.11207771,674.17,673.16,0.29710618]
[1738207537317,1.11207771,674.17,673.17,0.24390312]
[1738207537517,1.11207771,674.17,673.18,0.29709735]
[1738207538022,1.11207771,674.17,673.19,0.24384525]
[1738207538324,1.11207771,674.17,673.2,0.29708853]
[1738207538523,1.11207771,674.17,673.21,0.24383984]
[1738207539023,1.11207771,674.17,673.2,0.29708853]
[1738207539918,1.11207771,674.26,673.2,0.29708853]
[1738207541628,1.11207771,674.26,673.21,0.24376981]
[1738207543127,1.11207771,674.36,673.2,0.29708853]
[1738207543623,1.11207771,674.36,673.21,0.24378453]
[1738207544229,1.11207771,674.36,673.2,0.29708853]
[1738207544521,1.11207771,674.36,673.21,0.24377392]
[1738207545529,1.11207771,674.36,673.21,0.54085803]
[1738207545730,1.11207771,674.36,673.22,0.54085362]
[1738207545927,1.11207771,674.36,673.23,0.54084921]
[1738207546124,1.11207771,674.36,673.24,0.5408448]
[1738207546326,1.11207771,674.36,673.25,0.29706646]
[1738207546726,1.11207771,674.32,673.25,0.29706646]
[1738207548926,1.11207771,674.32,673.26,0.24371446]
[1738207549131,1.11207771,674.32,673.27,0.29705764]
[1738207549434,1.11207771,674.32,673.28,0.24371446]
[1738207549629,1.11207771,674.32,673.29,0.29704881]
[1738207549830,1.11207771,674.32,673.3,0.24371446]
[1738207550031,1.11207771,674.32,673.3,0.54075886]
[1738207550229,1.11207771,674.32,673.3,0.2970444]
[1738207550432,1.11207771,674.38,673.31,0.24371423]
[1738207550632,0.27268308,674.37,673.31,0.24371423]
[1738207551836,1.11207771,674.38,673.3,0.2970444]
[1738207552037,0.27268466,674.37,673.31,0.24370586]
[1738207552734,0.27268466,674.37,673.3,0.2970444]
[1738207553035,1.11207771,674.36,673.3,0.2970444]
[1738207553235,0.27268466,674.35,673.3,0.2970444]
[1738207553634,1.11207771,674.36,673.3,0.2970444]
[1738207553835,0.27268369,674.35,673.3,0.2970444]
[1738207554338,1.11207771,674.36,673.31,0.24370134]
[1738207554638,1.11207771,674.36,673.32,0.29703558]
[1738207555535,0.27267571,674.35,673.32,0.29703558]
[1738207555839,0.27267571,674.35,673.33,0.24370473]
[1738207556541,0.27267571,674.4,673.33,0.24370473]
[1738207556842,0.27267571,674.39,673.33,0.24370473]
[1738207557035,0.27267571,674.38,673.33,0.24370473]
[1738207557241,0.27267571,674.4,673.33,0.24370473]
[1738207557441,0.27267571,674.39,673.33,0.24370473]
[1738207557641,0.27267571,674.4,673.33,0.24370473]
[1738207557842,0.27267571,674.39,673.33,0.24370473]
[1738207558042,0.27267571,674.4,673.33,0.24370473]
[1738207558240,0.27267571,674.39,673.33,0.24370473]
[1738207558436,0.27267571,674.4,673.33,0.24370473]
[1738207558635,1.11207771,674.41,673.32,0.29703558]
[1738207558841,0.27268496,674.4,673.33,0.24371632]
[1738207560345,1.11207771,674.38,673.33,0.24371632]
[1738207560536,0.27268496,674.37,673.33,0.24371632]
[1738207561644,0.272687,674.36,673.34,0.24371818]
[1738207561942,0.272687,674.35,673.32,0.29703558]
[1738207562145,0.272687,674.37,673.33,0.24360658]
[1738207562337,0.272687,674.36,673.33,0.24360658]
[1738207562540,0.272687,674.35,673.33,0.24360658]
[1738207562740,1.11207771,674.38,673.32,0.29703558]
[1738207562938,0.27268528,674.37,673.33,0.24355834]
[1738207563345,1.11207771,674.36,673.33,0.24355834]
[1738207563543,0.27268528,674.35,673.33,0.24355834]
[1738207564944,1.11207771,674.36,673.32,0.29703558]
[1738207565243,0.27266712,674.35,673.33,0.24348744]
[1738207566647,1.38474483,674.35,673.33,0.24348744]
[1738207566844,0.27266712,674.34,673.33,0.24348744]
[1738207568350,1.11207771,674.35,673.32,0.29703558]
[1738207568546,0.27266848,674.34,673.33,0.24347258]
[1738207570048,1.11207771,674.35,673.33,1.10731267]
[1738207570249,0.27266479,674.34,673.34,0.24343493]
[1738207574149,1.11207771,674.31,673.37,1.10731267]
[1738207574348,0.27266479,674.3,673.38,0.24343493]
[1738207575744,1.11207771,674.31,673.37,1.10731267]
[1738207578351,1.11207771,674.52,673.32,0.29703558]
[1738207582554,1.11207771,674.5,673.32,0.29703558]
[1738207585664,0.27267322,674.49,673.33,0.24337955]
[1738207586462,0.27267322,674.49,673.32,0.29703558]
[1738207586658,1.11207771,674.48,673.33,0.24341621]
[1738207586861,0.27267322,674.47,673.33,0.24341621]
[1738207587362,1.11207771,674.48,673.32,0.29703558]
[1738207589364,1.11207771,674.48,673.33,0.24332176]
[1738207590766,1.11207771,674.49,673.33,0.24332176]
[1738207591160,1.11207771,674.49,673.32,0.29703558]
[1738207591362,1.11207771,674.49,673.33,0.24330739]
[1738207592067,1.11207771,674.49,673.34,0.29702676]
[1738207592268,1.11207771,674.49,673.35,0.24330739]
[1738207593068,1.11207771,674.49,673.36,0.29701793]
[1738207593369,1.11207771,674.49,673.37,0.24330739]
[1738207593568,1.11207771,674.6,673.37,0.24330739]
[1738207593868,1.11207771,674.6,673.36,0.29701793]
[1738207596468,1.11207771,674.82,673.36,0.29701793]
[1738207597572,1.11207771,674.82,673.37,0.24314718]
[1738207597772,0.2725708,674.81,673.37,0.24314718]
[1738207597973,0.2725708,674.81,673.38,0.29700911]
[1738207598271,0.2725708,674.81,673.39,0.24314718]
[1738207600268,0.2725708,675.0,673.39,0.24314718]
[1738207600467,0.2725708,674.99,673.39,0.24314718]
[1738207600767,0.56887587,674.98,673.4,0.29700029]
[1738207600974,0.2725708,674.97,673.41,0.24314718]
[1738207601170,0.56888026,674.97,673.42,0.29699147]
[1738207601370,2.11732342,674.96,673.43,0.24314718]
[1738207601570,0.2725708,674.95,673.44,0.29698265]
[1738207601877,0.56888904,674.95,673.45,0.24314718]
[1738207602173,0.56889343,674.94,673.46,0.29697383]
[1738207602370,0.29632702,674.93,673.46,0.29697383]
[1738207602672,0.27258111,674.92,673.47,0.24319714]
[1738207603171,0.2963358,674.91,673.47,0.24319714]
[1738207603372,0.27258111,674.9,673.47,0.24319714]
[1738207603573,0.29634458,674.89,673.47,0.54016656]
[1738207603875,1.11207771,674.72,673.48,0.24319714]
[1738207604169,0.27258399,674.71,673.49,0.24320133]
[1738207604370,0.27258399,674.71,673.5,0.24320133]
[1738207604576,0.27258399,674.71,673.51,0.24320133]
[1738207604775,0.27258399,674.71,673.52,0.24320133]
[1738207605074,0.27258399,674.71,673.53,0.24320133]
[1738207605272,0.27258399,674.71,673.48,0.24320133]
[1738207605475,0.27258399,674.71,673.49,0.24320133]
[1738207605674,0.27258399,674.71,673.48,0.24320133]
[1738207605874,0.27258399,674.71,673.49,0.24320133]
[1738207606174,0.27258399,674.71,673.5,0.24320133]
[1738207606375,0.27258399,674.71,673.48,0.24320133]
[1738207606576,0.27258399,674.71,673.49,0.24320133]
[1738207606876,0.27258399,674.71,673.47,0.29696942]
[1738207606877,0.27258399,674.71,673.5,0.24320133]
[1738207607177,0.27258399,674.71,673.51,0.24320133]
[1738207607378,0.27258399,674.71,673.52,0.24320133]
[1738207607678,0.27258409,674.7,673.53,0.24320104]
[1738207607975,0.27258409,674.7,673.54,0.24320104]
[1738207608171,0.27258409,674.7,673.48,0.24320104]
[1738207610673,1.11207771,674.67,673.48,0.24320104]
[1738207611078,0.27258409,674.66,673.48,0.24320104]
[1738207612579,1.11207771,674.67,673.47,0.29696942]
[1738207612780,0.27258349,674.66,673.48,0.24320309]
[1738207614074,0.27258349,674.73,673.48,0.24320309]
[1738207614276,1.11207771,674.74,673.48,0.24320309]
[1738207614277,0.27258349,674.72,673.48,0.24320309]
[1738207614476,0.27258349,674.71,673.48,0.24320309]
[1738207614675,0.27258349,674.73,673.48,0.24320309]
[1738207616684,1.11207771,674.72,673.48,0.24320309]
[1738207616884,0.27258349,674.71,673.48,0.24320309]
[1738207617784,0.27258626,674.7,673.49,0.24320677]
[1738207617982,0.27258626,674.71,673.48,0.24320677]
[1738207618177,0.27258626,674.7,673.49,0.24320677]
[1738207618381,0.27258626,674.71,673.48,0.24320677]
[1738207618581,0.27258626,674.7,673.49,0.24320677]
[1738207618779,0.27258626,674.71,673.48,0.24320677]
[1738207618983,0.27258626,674.7,673.47,0.29696942]
[1738207619181,0.27258626,674.71,673.47,0.29696942]
[1738207619380,1.11207771,674.72,673.47,0.29696942]
[1738207619581,0.27259143,674.71,673.47,0.29696942]
[1738207620187,1.11207771,674.68,673.47,0.29696942]
[1738207620384,0.27259143,674.67,673.47,0.29696942]
[1738207621685,1.11207771,674.68,673.47,0.29696942]
[1738207622086,0.27260135,674.67,673.47,0.29696942]
[1738207622482,1.11207771,674.68,673.47,0.29696942]
[1738207623588,1.11207771,674.67,673.47,0.29696942]
[1738207626689,1.11207771,674.64,673.47,0.29696942]
[1738207628887,1.11207771,674.64,673.48,0.24320255]
[1738207629088,1.11207771,674.64,673.49,0.2969606]
[1738207629390,0.27258017,674.63,673.5,0.24320255]
[1738207629584,0.27258017,674.63,673.51,0.29695178]
[1738207629793,0.27258017,674.63,673.52,0.24320255]
[1738207629988,0.27258017,674.63,673.53,0.29694297]
[1738207630189,0.27258017,674.63,673.54,0.24320255]
[1738207630391,0.27258017,674.63,673.55,0.29693415]
[1738207630594,1.11207771,674.65,673.55,0.29693415]
[1738207630595,0.27258017,674.62,673.55,0.29693415]
[1738207630793,0.27258017,674.61,673.56,0.2432106]
[1738207631089,0.27258017,674.6,673.57,0.29692533]
[1738207631291,0.27258901,674.64,673.57,0.29692533]
[1738207634092,1.11207771,674.52,673.57,0.29692533]
[1738207637095,1.11207771,674.47,673.57,0.29692533]
[1738207639898,1.11207771,674.66,673.57,0.29692533]
[1738207642401,1.11207771,674.68,673.57,0.29692533]
[1738207645701,1.11207771,674.76,673.57,0.29692533]
[1738207648403,1.11207771,674.69,673.57,0.29692533]
[1738207652208,1.11207771,674.81,673.57,0.29692533]
[1738207654705,1.11207771,674.74,673.57,0.29692533]
[1738207658112,0.27257152,674.73,673.57,0.29692533]
[1738207658606,0.27257152,674.72,673.57,0.29692533]
[1738207658811,0.27257152,674.71,673.57,0.29692533]
[1738207659011,1.11207771,674.77,673.57,0.29692533]
[1738207659212,0.2725822,674.76,673.57,0.29692533]
[1738207660212,1.11207771,674.77,673.57,0.29692533]
[1738207660412,0.27257842,674.76,673.57,0.29692533]
[1738207660809,1.11207771,674.61,673.57,0.29692533]
[1738207663709,1.11207771,674.61,673.53,0.29694297]
[1738207664108,1.11207771,674.62,673.53,0.29694297]
[1738207666716,1.11207771,674.63,673.54,1.10731267]
[1738207666917,1.11207771,674.63,673.55,0.29693415]